Cogmind - Beta 9.6 @@@ ROGUE MODE // 2020.05.30 @ 18:24:07 Player: 3.14 Result: Self-destructed Performance ------------- Evolutions (8) 4000 Regions Visited (26) 5200 Robots Destroyed (285) 1425 Value Destroyed (13748) 13748 Prototype IDs (55) 1100 Alien Tech Used (2) 400 Bonus (7952) 7952 TOTAL SCORE: 33825 Bonus ------- High Alert Combat Kills 1898 Follower Combat Kills 3075 Met Data Miner 300 Met Zhirov 300 Met Warlord at Base 500 MAIN.C Attacked Warlord 500 Warlord Defense Kill 552 Built Enhanced Grunts 300 A7 Reached Mainframe 300 Scanned by Researcher 500 Friendly Fire -273 Cogmind --------- Core Integrity 1351/1450 Matter 247/300 Energy 333/580 System Corruption 0% Temperature Cool (318) Movement Immobile (Siege) Ox1 Location -2/Research Parts ------- > --- POWER (4) -------- Light Antimatter Reactor Heavy Antimatter Reactor Light Particle Reactor Light Quantum Reactor > --- PROPULSION (4) --- Heavy Siege Treads Centrium Heavy Treads > --- UTILITY (13) ----- Advanced Heat Sink Large Storage Unit Large Storage Unit Advanced Targeting Computer Advanced Targeting Computer Advanced Target Analyzer SHELL Armor Experimental Thermal Shield Advanced Shield Generator > --- WEAPON (2) ------- Enhanced Nova Cannon Enhanced Nova Cannon > --- INVENTORY (16) --- Heavy Treads Heavy Siege Treads Flexi-carbon Leg Improved Energy Well (600) Improved Energy Well (600) Improved Energy Well (600) Advanced Energy Well (800) Centrium Medium Armor Plating System Backup Module Dimensional Node Initializer Gamma Rifle Enhanced Nova Cannon Missile Launcher Peak State ------------ > --- POWER ------------ Light Antimatter Reactor Light Antimatter Reactor Heavy Antimatter Reactor Light Quantum Reactor > --- PROPULSION ------- Centrium Heavy Treads Centrium Heavy Treads > --- UTILITY ---------- Advanced Cooling System Large Storage Unit Large Storage Unit Advanced Targeting Computer Advanced Targeting Computer Advanced Target Analyzer Improved Core Analyzer Centrium Medium Armor Plating SHELL Armor Experimental Thermal Shield Ghost Barrier > --- WEAPON ----------- Gamma Rifle Compact HERF Cannon > --- INVENTORY -------- Heavy Treads Flexi-carbon Leg Advanced Heat Sink Improved Energy Well Improved Energy Well Improved Energy Well Advanced Energy Well Advanced Force Field System Backup Module Dimensional Node Initializer Quantum Rifle Enhanced Quantum Rifle Enhanced Nova Cannon Missile Launcher [Rating: 178] Favorites ----------- Power Reinforced Deuterium Engine Engine Reinforced Deuterium Engine Power Core Light Nuclear Core Reactor Vortex Chain Reactor Propulsion Improved Medium Treads Treads Improved Medium Treads Utility Large Storage Unit Device Advanced Heat Sink Storage Large Storage Unit Processor Improved Core Analyzer Hackware Ghost Barrier Protection Layered Heavy Armor Plating Weapon Advanced Beam Cannon Energy Gun Shock Rifle Energy Cannon Advanced Beam Cannon Ballistic Gun Light Assault Rifle Launcher Missile Launcher Build | -11 -10 -9 -8 -7 -7 -7 -7 -6 -6 -6 -6 -6 -6 -5 -5 -5 -5 -4 -4 -4 -4 -4 -3 -3 -3 -2 ------- Run | Scr Mat Mat Mat Fac Low Low Dat Pro Fac Ext Cet Arc Hub Fac Upp Upp War Pro Fac Upp Upp Zhi Pro Res Tes Res Slots Evolved 16 | . . 2 2 2 . . . . 2 . . . . 2 . . . . 2 . . . . 2 . 2 Power 3 | . . . 1 . . . . . . . . . . . . . . . . . . . . 1 . 1 Propulsion 2 | . . . . 2 . . . . . . . . . . . . . . . . . . . . . . Utility 11 | . . 2 1 . . . . . 2 . . . . 2 . . . . 2 . . . . 1 . 1 Weapon . | . . . . . . . . . . . . . . . . . . . . . . . . . . . Parts Attached 383 | 6 9 8 33 35 6 4 2 16 17 28 15 2 10 9 . . 13 12 33 12 7 5 8 36 37 20 Power 33 | 1 1 1 6 3 . . . 2 . 3 1 . . . . . 1 . . . . 1 . 5 5 3 Engine 13 | 1 1 1 3 2 . . . 2 . 3 . . . . . . . . . . . . . . . . Core 4 | . . . 3 1 . . . . . . . . . . . . . . . . . . . . . . Reactor 16 | . . . . . . . . . . . 1 . . . . . 1 . . . . 1 . 5 5 3 Propulsion 47 | 2 . 3 5 5 . . . 3 1 10 3 . 1 . . . 3 . 4 . . 1 . 3 1 2 Treads 47 | 2 . 3 5 5 . . . 3 1 10 3 . 1 . . . 3 . 4 . . 1 . 3 1 2 Leg . | . . . . . . . . . . . . . . . . . . . . . . . . . . . Wheel . | . . . . . . . . . . . . . . . . . . . . . . . . . . . Hover . | . . . . . . . . . . . . . . . . . . . . . . . . . . . Flight . | . . . . . . . . . . . . . . . . . . . . . . . . . . . Utility 151 | 1 3 2 8 17 2 1 1 4 8 9 4 2 1 9 . . 7 2 17 7 4 3 4 10 17 8 Device 87 | . 1 1 5 7 2 1 1 3 3 7 . 2 1 2 . . 5 2 13 3 3 1 1 5 11 7 Storage 12 | 1 2 . 2 3 . . . . 1 . . . . 1 . . . . . . . 1 . . 1 . Processor 12 | . . . . 1 . . . . . . . . . 3 . . 2 . 1 2 . . 1 1 1 . Hackware 3 | . . . . . . . . . . . . . . . . . . . . . . . . . 3 . Protection 37 | . . 1 1 6 . . . 1 4 2 4 . . 3 . . . . 3 2 1 1 2 4 1 1 Artifact . | . . . . . . . . . . . . . . . . . . . . . . . . . . . Weapon 152 | 2 5 2 14 10 4 3 1 7 8 6 7 . 8 . . . 2 10 12 5 3 . 4 18 14 7 Energy Gun 58 | 1 5 2 9 5 3 1 1 4 3 1 2 . 2 . . . . 2 1 1 . . . 6 6 3 Energy Cannon 75 | . . . 3 4 . . . 2 4 5 5 . 4 . . . 1 6 9 3 3 . 3 11 8 4 Ballistic Gun 2 | 1 . . 1 . . . . . . . . . . . . . . . . . . . . . . . Ballistic Cannon . | . . . . . . . . . . . . . . . . . . . . . . . . . . . Launcher 17 | . . . 1 1 1 2 . 1 1 . . . 2 . . . 1 2 2 1 . . 1 1 . . Special Weapon . | . . . . . . . . . . . . . . . . . . . . . . . . . . . Impact Weapon . | . . . . . . . . . . . . . . . . . . . . . . . . . . . Slashing Weapon . | . . . . . . . . . . . . . . . . . . . . . . . . . . . Piercing Weapon . | . . . . . . . . . . . . . . . . . . . . . . . . . . . Special Melee Weapon . | . . . . . . . . . . . . . . . . . . . . . . . . . . . Unidentified Prototypes 25 | . . . 3 2 . . . . 1 . 3 1 1 1 . . 4 . . . . 3 . 2 4 . Parts Lost 23 | . 2 . 2 . . . . 2 . . . . . . . . . . 6 . . . 1 2 4 4 Power 3 | . . . 1 . . . . . . . . . . . . . . . . . . . . . 2 . Propulsion . | . . . . . . . . . . . . . . . . . . . . . . . . . . . Utility 13 | . . . 1 . . . . . . . . . . . . . . . 4 . . . 1 2 1 4 Weapon 7 | . 2 . . . . . . 2 . . . . . . . . . . 2 . . . . . 1 . Highest Loss Streak 3 | . 2 . 2 . . . . 2 . . . . . . . . . . 2 . . . 1 1 2 3 Average Slot Usage (%) 88 | . 95 99 97 99 100 100 100 100 99 99 94 93 93 93 94 94 85 82 80 74 78 78 77 76 81 80 Engine 4 | . 14 11 7 7 7 7 7 8 13 13 7 6 6 5 5 5 2 . . . . . . . . . Core 1 | . . . 8 7 7 7 7 5 . . . . . . . . . . . . . . . . . . Reactor 4 | . . . . . . . . . . . 4 6 6 5 5 5 5 5 5 5 5 5 5 9 13 15 Treads 18 | . 28 22 18 30 30 30 30 30 25 25 25 26 26 23 23 23 17 17 11 10 10 10 10 8 9 8 Device 11 | . 2 10 11 6 7 7 7 7 20 20 14 13 13 11 11 11 8 5 14 18 15 12 10 6 5 11 Storage 17 | . 21 22 25 23 23 23 23 23 20 20 20 20 20 17 17 17 17 17 15 15 15 15 15 14 13 8 Processor 8 | . . . . . . . . . . . . . . 6 11 11 13 17 16 10 10 10 12 16 18 16 Protection 6 | . . 10 8 6 7 7 7 7 5 6 6 6 6 8 5 5 5 5 5 5 10 11 11 9 4 4 Energy Gun 5 | . 23 22 16 11 14 14 15 13 7 1 . . 2 . . . . 4 1 . . . . 2 5 3 Energy Cannon 6 | . . . . 3 . . . . 5 11 12 13 9 11 11 11 10 5 8 5 10 10 9 6 2 4 Naked Turns . | . . . . . . . . . . . . . . . . . . . . . . . . . . . Heaviest Build 156 | 12 43 49 66 94 84 84 84 85 101 108 114 113 122 130 122 122 130 120 133 138 133 133 120 156 147 155 Greatest Support 160 | 40 40 40 40 88 88 88 88 108 108 120 140 120 120 120 120 120 140 134 150 150 150 150 150 155 160 160 Greatest Overweight (x) 3 | 3 1 1 1 1 . . . . 1 1 . . 1 1 1 1 1 . 1 . . . . 1 1 1 Average Overweight (x) . | . . 1 1 . . . . . . . . . . . 1 1 . . . . . . . . . . Largest Inventory Capacity 22 | 6 16 16 20 22 22 22 22 22 22 22 22 22 22 22 22 22 22 22 22 22 22 22 22 22 22 16 Average Capacity 20 | 5 11 16 19 21 22 22 22 22 22 22 22 22 22 22 22 22 22 22 22 22 22 22 22 22 20 16 Most Carried 22 | 4 16 16 20 22 22 22 22 22 22 22 22 22 22 22 22 22 22 22 22 22 22 22 22 22 22 16 Average Carried 20 | 2 10 14 18 21 22 22 22 21 21 21 21 21 21 21 21 22 21 22 21 21 22 21 21 21 20 15 Final Capacity 22 | 6 16 16 20 22 22 22 22 22 22 22 22 22 22 22 22 22 22 22 22 22 22 22 22 22 16 16 Final Carried 22 | 4 14 16 20 22 22 22 22 22 22 22 21 22 22 22 22 22 22 22 21 22 22 22 21 21 16 15 Class Distribution -------------------- 57% | Hauler-Mutant 26% | Scavenger-Mutant 6% | Mutant 3% | Hacker-Mutant Dominant Class ---------------- Mutant | -10/Materials Mutant | -9/Materials Scavenger-Mutant | -8/Materials Hauler-Mutant | -7/Factory Hauler-Mutant | -7/Lower Caves Hauler-Mutant | -7/Lower Caves Hauler-Mutant | -7/Data Miner Hauler-Mutant | -6/Proximity Caves Hauler-Mutant | -6/Factory Scavenger-Mutant | -6/Extension Hauler-Mutant | -6/Cetus Hauler-Mutant | -6/Archives Scavenger-Mutant | -6/Hub_04(d) Scavenger-Mutant | -5/Factory Scavenger-Mutant | -5/Upper Caves Scavenger-Mutant | -5/Upper Caves Scavenger-Mutant | -5/Warlord Hauler-Mutant | -4/Proximity Caves Hauler-Mutant | -4/Factory Hauler-Mutant | -4/Upper Caves Hauler-Mutant | -4/Upper Caves Hauler-Mutant | -4/Zhirov Hauler-Mutant | -3/Proximity Caves Scavenger-Mutant | -3/Research Hacker-Mutant | -3/Testing Generator-Mutant | -2/Research Resources | -11 -10 -9 -8 -7 -7 -7 -7 -6 -6 -6 -6 -6 -6 -5 -5 -5 -5 -4 -4 -4 -4 -4 -3 -3 -3 -2 ----------- Run | Scr Mat Mat Mat Fac Low Low Dat Pro Fac Ext Cet Arc Hub Fac Upp Upp War Pro Fac Upp Upp Zhi Pro Res Tes Res Matter Collected 4542 | 262 77 72 324 361 80 74 . 211 57 398 150 20 80 85 20 . 174 69 459 349 110 . 185 381 352 192 Remotely . | . . . . . . . . . . . . . . . . . . . . . . . . . . . Salvage Created 13765 | 95 264 440 1054 456 27 101 . 214 89 690 392 . 234 88 48 111 188 119 2007 137 429 . 234 2411 2631 1306 Parts 586 | 1 16 24 54 20 4 13 . 14 8 22 12 . 2 5 1 4 4 17 101 6 13 . 2 75 113 55 Haulers Intercepted 9 | . 1 1 3 1 . . . . . 2 . . 1 . . . . . . . . . . . . . Recyclers Shooed 7 | . . . 1 2 . . . . . 2 . . . . . . . . 2 . . . . . . . Parts Field Recycled . | . . . . . . . . . . . . . . . . . . . . . . . . . . . Retrieved Matter . | . . . . . . . . . . . . . . . . . . . . . . . . . . . Parts Self-Destructed 121 | . . . . . 5 11 . 6 . . . . . . 6 20 52 16 . 4 . . 1 . . . Prevented 40 | . . . . . . . . 13 . . . . . . . . 10 3 . 1 13 . . . . . Kills | -11 -10 -9 -8 -7 -7 -7 -7 -6 -6 -6 -6 -6 -6 -5 -5 -5 -5 -4 -4 -4 -4 -4 -3 -3 -3 -2 ------- Run | Scr Mat Mat Mat Fac Low Low Dat Pro Fac Ext Cet Arc Hub Fac Upp Upp War Pro Fac Upp Upp Zhi Pro Res Tes Res Combat Hostiles Destroyed 219 | . 5 9 16 3 3 7 . 6 4 7 5 . . 2 1 2 6 10 39 5 5 . 6 23 39 16 Guns 33 | . 5 5 9 1 . . . 1 1 . . . . . . . . 1 1 . . . . 4 5 . Cannons 75 | . . . 1 2 . . . . . 7 3 . . 2 1 2 3 1 23 1 3 . 3 5 11 7 AOE 72 | . . 3 4 . 3 7 . 4 3 . . . . . . . 2 8 10 4 . . 2 3 19 . Classes Destroyed 22 | 1 4 3 1 1 . . . 1 . 1 1 . . . . . 2 . 2 . . . . . 2 3 Worker 10 | . . 1 2 . . . . . . . . . . . . . . . 4 . . . . . 3 . Builder 15 | . . 1 1 . . . . . 1 1 . . . . . . . . . . . . . 3 8 . Tunneler 1 | . . . . . . . . . . . . . . . . . . . 1 . . . . . . . Hauler 9 | . 1 1 3 1 . . . . . 2 . . 1 . . . . . . . . . . . . . Recycler 12 | 1 1 . 1 2 . . . . . . . . 1 . . . . . . . . . . 4 2 . Carrier 1 | . . . . . . . . . . . 1 . . . . . . . . . . . . . . . Operator 3 | . . . . . . . . . . 2 . . . . . . . . . . . . . . 1 . Watcher 13 | . 1 . 1 2 . . . . . . . . . . . . . . 1 . . . . 5 2 1 Swarmer 57 | . 3 . 3 . 3 7 . 4 3 . 1 . . 1 . 1 1 10 9 4 . . 1 3 3 . Saboteur 1 | . . . . . . . . . . . . . . . . . 1 . . . . . . . . . Grunt 68 | . 2 7 9 . . . . . . 4 2 . . 1 1 . 2 . 5 . 2 . 1 5 21 6 Brawler 1 | . . . . . . . . . . . . . . . . . . . 1 . . . . . . . Duelist 5 | . . . . . . . . . . . . . . . . . 1 . 2 . . . 2 . . . Protector 1 | . . . . . . . . . . . . . . . . . . . . . . . . . 1 . Researcher 2 | . . . . . . . . . . . . . . . . . . . . . . . . . 2 . Sentry 21 | . . 2 1 1 . . . . 1 2 . . . . . 1 . . 5 1 1 . 1 . 3 2 Demolisher 2 | . . . . . . . . . . . . . . . . . . . . . . . . . . 2 Hunter 29 | . . . 3 . . . . 1 . 1 . . . . . . . . 6 . 2 . . 8 6 2 Programmer 26 | . . . . 2 . . . . . . . . . . . . . . 11 . . . 1 6 5 1 Behemoth 2 | . . . . . . . . 1 . . . . . . . . . . . . . . . 1 . . Cetus Guard 2 | . . . . . . . . . . . 2 . . . . . . . . . . . . . . . Striker 1 | . . . . . . . . . . . . . . . . . . . . . . . . . . 1 Executioner 2 | . . . . . . . . . . . . . . . . . . . . . . . . . . 2 Bouncer 1 | . . . . . . . . . . . . . . . . . 1 . . . . . . . . . Best Kill Streak 18 | 1 3 3 8 1 3 4 . 5 3 3 3 . 1 1 1 1 2 5 8 4 2 . 5 5 18 7 Combat Bots Only 13 | . 3 3 6 1 3 4 . 5 3 3 2 . . 1 1 1 2 5 6 4 2 . 5 4 13 7 Max Kills in Single Turn 5 | 1 1 3 2 1 2 4 . 2 2 1 1 . 1 1 1 1 2 3 3 3 1 . 1 3 5 1 Gunslinging . | . . . . . . . . . . . . . . . . . . . . . . . . . . . Exploded 4 | . . 1 2 . 2 4 . 2 2 . . . . . . . 2 3 2 3 . . 1 2 4 . Melee . | . . . . . . . . . . . . . . . . . . . . . . . . . . . Uniques/NPCs Destroyed . | . . . . . . . . . . . . . . . . . . . . . . . . . . . Combat | -11 -10 -9 -8 -7 -7 -7 -7 -6 -6 -6 -6 -6 -6 -5 -5 -5 -5 -4 -4 -4 -4 -4 -3 -3 -3 -2 -------- Run | Scr Mat Mat Mat Fac Low Low Dat Pro Fac Ext Cet Arc Hub Fac Upp Upp War Pro Fac Upp Upp Zhi Pro Res Tes Res Damage Taken 16400 | . 353 290 780 380 69 67 . 873 61 905 69 20 185 13 12 52 390 246 2931 10 300 . 618 2227 3299 2250 Core 1232 | . 51 63 112 91 . 18 . 52 . 96 5 . 52 13 . . . 29 199 . 11 . . 105 236 99 Absorbed by Shields 2871 | . . . 209 3 . . . . 44 266 53 . . . . . 96 . 595 . . . . 670 335 600 Reduced by Siege Mode 157 | . . . . . . . . . . . . . . . . . . . 11 . 2 . . 37 13 94 Core Remaining (%) 82 | 100 79 84 79 . . . . 77 . . . . 82 . . . . 95 . . . . 81 . 67 . Volleys Fired 625 | 2 23 21 54 24 2 3 . 18 12 56 17 . 13 4 3 3 11 16 119 8 13 . 15 68 79 41 Largest 2 | 2 2 2 2 2 1 1 . 2 2 2 2 . 2 2 2 2 2 2 2 1 2 . 2 2 2 2 Hottest 240 | 70 100 90 112 136 36 36 . 125 130 136 240 . 136 125 125 125 125 140 180 80 156 . 125 163 200 240 Shots Fired 1096 | 4 46 42 102 47 2 3 . 34 16 105 27 . 23 7 6 6 19 19 217 8 26 . 25 127 111 74 Gun 428 | 4 46 42 90 21 . . . 22 8 7 1 . 2 . . . . 3 24 1 . . . 56 62 39 Cannon 627 | . . . 10 26 . . . 10 6 98 26 . 21 7 6 6 16 11 181 5 26 . 20 68 49 35 Launcher 41 | . . . 2 . 2 3 . 2 2 . . . . . . . 3 5 12 2 . . 5 3 . . Special . | . . . . . . . . . . . . . . . . . . . . . . . . . . . Kinetic 11 | 2 5 . 4 . . . . . . . . . . . . . . . . . . . . . . . Thermal 529 | 2 15 . 5 26 . . . . 14 91 11 . 22 7 6 6 16 8 157 1 . . 20 33 67 22 Explosive 41 | . . . 2 . 2 3 . 2 2 . . . . . . . 3 5 12 2 . . 5 3 . . Electromagnetic 515 | . 26 42 91 21 . . . 32 . 14 16 . 1 . . . . 6 48 5 26 . . 91 44 52 Robot Hit Streak 40 | 2 6 8 14 6 4 2 . 19 20 23 13 . 21 23 7 9 14 15 26 2 14 . 32 40 37 36 Robot Miss Streak 4 | 1 4 2 4 4 1 . . 1 1 4 2 . 1 1 . 1 3 3 3 1 1 . . 1 2 1 Penetration Max 1 | . . . 1 . . . . . . . . . . . . . . . . . . . . . . . Secondary Targets 6 | . 2 2 1 . . . . . . . . . . . . . . . . . . . . 1 . . Max Gunslinging Chain 1 | . 1 1 1 . . . . . . . . . . . . . . . . . . . . 1 . . Shots Hit Robots 767 | 3 24 38 70 24 1 2 . 32 6 73 21 . 21 4 5 4 14 5 136 2 22 . 22 107 64 67 Core Hits 482 | 2 13 19 38 13 3 8 . 12 8 25 9 . 4 3 2 4 16 12 102 7 14 . 21 57 71 19 Critical Hits 52 | . . . . 1 . . . . . 8 2 . 3 . . . 1 . 3 . 1 . 2 9 16 6 Critical Kills 20 | . . . . . . . . . . 4 1 . 1 . . . . . 1 . 1 . . 3 8 1 Critical Parts Destroyed 27 | . . . . 1 . . . . . 4 1 . 2 . . . 1 . 2 . . . 1 3 8 4 Melee Attacks . | . . . . . . . . . . . . . . . . . . . . . . . . . . . Impact . | . . . . . . . . . . . . . . . . . . . . . . . . . . . Slashing . | . . . . . . . . . . . . . . . . . . . . . . . . . . . Piercing . | . . . . . . . . . . . . . . . . . . . . . . . . . . . Sneak Attacks . | . . . . . . . . . . . . . . . . . . . . . . . . . . . Combat Hostiles . | . . . . . . . . . . . . . . . . . . . . . . . . . . . Follow-up Attacks . | . . . . . . . . . . . . . . . . . . . . . . . . . . . Damage Inflicted 36136 | 25 402 1013 1655 766 296 449 . 893 477 1848 496 . 496 105 168 98 1361 799 6246 347 551 . 1187 4410 9734 2314 Guns 6964 | 25 349 478 1147 231 . . . 320 162 193 . . 26 . . . . 20 477 . . . . 1482 1054 1000 Cannons 16705 | . . . 163 357 . . . 156 . 1626 496 . 458 105 168 98 465 26 4394 58 551 . 691 2184 3395 1314 Explosions 12005 | . 42 527 330 92 296 449 . 417 204 . . . . . . . 896 753 1315 289 . . 496 682 5217 . Melee . | . . . . . . . . . . . . . . . . . . . . . . . . . . . Ramming 462 | . 11 8 15 86 . . . . 111 29 . . 12 . . . . . 60 . . . . 62 68 . Kinetic 151 | 13 31 . 107 . . . . . . . . . . . . . . . . . . . . . . . Thermal 19534 | 12 142 161 183 449 . . . 52 162 1474 148 . 484 105 168 98 465 . 4225 . . . 691 1157 8542 816 Explosive 5822 | . . 366 198 . 296 449 . 365 204 . . . . . . . 896 753 1028 289 . . 496 482 . . Electromagnetic 10167 | . 218 478 1152 231 . . . 476 . 345 348 . . . . . . 46 933 58 551 . . 2709 1124 1498 Impact . | . . . . . . . . . . . . . . . . . . . . . . . . . . . Slashing . | . . . . . . . . . . . . . . . . . . . . . . . . . . . Piercing . | . . . . . . . . . . . . . . . . . . . . . . . . . . . Highest Corruption 13 | . . . 4 2 2 2 2 2 . . . . . . . . 13 1 12 12 . . . 7 12 . Average Corruption 3 | . . . 4 1 2 2 2 2 . . . . . . . . 3 1 3 6 . . . 3 6 . Corruption Purged 25 | . . . . . . . . . . . . . . . . . . 1 4 12 . . . . 8 . Effects 135 | . . . 8 2 2 2 1 6 . . . . . . . . 3 3 23 44 . . . 7 34 . Message Errors 24 | . . . . 2 1 . . 2 . . . . . . . . . 1 2 9 . . . 2 5 . Matter Fused 25 | . . . 1 . . . . . . . . . . . . . 1 . 3 14 . . . 1 5 . Heat Flow Errors 18 | . . . 1 . 1 . . 2 . . . . . . . . 2 . 2 7 . . . . 3 . Energy Discharges 10 | . . . 1 . . 2 . . . . . . . . . . . . . 4 . . . . 3 . Parts Rejected 6 | . . . 1 . . . . . . . . . . . . . . . . . . . . 2 3 . Data Loss (minor) 16 | . . . 2 . . . 1 2 . . . . . . . . . 2 2 4 . . . . 3 . Data Loss (major) 4 | . . . . . . . . . . . . . . . . . . . . 2 . . . . 2 . Misfires 1 | . . . . . . . . . . . . . . . . . . . . 1 . . . . . . Misdirections 3 | . . . . . . . . . . . . . . . . . . . 1 2 . . . . . . Targeting Errors 22 | . . . 2 . . . . . . . . . . . . . . . 11 . . . . 1 8 . Weapon Failures 6 | . . . . . . . . . . . . . . . . . . . 2 1 . . . 1 2 . Overload Shots 1 | . . . . . . . . . . . 1 . . . . . . . . . . . . . . . Overflow Damage 1123 | . . 13 26 . 20 6 . 9 9 16 . . . . . . 13 43 135 21 . . 69 185 504 54 Projectiles 576 | . . . . . . . . . . 16 . . . . . . 13 . 122 . . . 42 147 182 54 Explosions 518 | . . 13 26 . 20 6 . 9 . . . . . . . . . 43 13 21 . . 27 32 308 . Melee 29 | . . . . . . . . . 9 . . . . . . . . . . . . . . 6 14 . Knockbacks 2 | . . . . . . . . . . 1 . . . . . . . . . . . . . . 1 . Impact 2 | . . . . . . . . . . 1 . . . . . . . . . . . . . . 1 . Kinetic . | . . . . . . . . . . . . . . . . . . . . . . . . . . . Secondary . | . . . . . . . . . . . . . . . . . . . . . . . . . . . Self-Inflicted Damage 265 | . 23 42 92 . . . . . . . . . . . . . 1 . 71 . . . 28 . 8 . Shots 11 | . 1 1 3 . . . . . . . . . . . . . 1 . 3 . . . 1 . 1 . Rammed 35 | . 5 2 3 6 . . . . 6 3 . . 1 . . . . . 4 . . . . 3 2 . Targets Rammed 38 | . 6 2 4 6 . . . . 6 4 . . 1 . . . . . 4 . . . . 3 2 . Kicked . | . . . . . . . . . . . . . . . . . . . . . . . . . . . Crushed 3 | . 1 . 1 . . . . . . 1 . . . . . . . . . . . . . . . . Highest Temperature 480 | 60 162 54 330 480 137 24 . 248 75 304 228 . 261 51 117 42 226 81 340 246 267 . . 14 434 318 Average Temperature 93 | 30 45 21 122 129 55 11 . 97 27 76 86 . 148 27 63 22 72 42 91 101 116 . . 7 128 74 Received Heat Transfer 1801 | . 96 132 261 6 . . . 102 13 274 . . 33 9 9 6 33 . 179 . 33 . 90 111 234 180 Effects 13 | . . . 1 2 . . . . . . . . 3 . . . . . 1 . . . . . 5 1 Shutdowns 2 | . . . . 2 . . . . . . . . . . . . . . . . . . . . . . Energy Bleed 2 | . . . . . . . . . . . . . . . . . . . 1 . . . . . 1 . Interference 7 | . . . . . . . . . . . . . 3 . . . . . . . . . . . 3 1 Short Circuit 2 | . . . 1 . . . . . . . . . . . . . . . . . . . . . 1 . Siege Activations 10 | . . . . . . . . . . . . . . . . . . . 1 . 1 . . 3 4 1 Total Turns 203 | . . . . . . . . . . . . . . . . . . . 2 . 44 . . 43 83 31 Longest Duration 44 | . . . . . . . . . . . . . . . . . . . 2 . 44 . . 20 39 31 Robots Corrupted 39 | . . 1 2 . . . . 1 . . 2 . . . . . . . 5 . 2 . . 11 6 9 Combat Hostiles 35 | . . 1 2 . . . . 1 . . 2 . . . . . . . 5 . 2 . . 9 4 9 Parts Fried 103 | . . 2 5 3 . . . 3 . . 3 . . . . . . . 14 . 7 . . 34 18 14 Impact Corruptions 3 | . . . . . . . . . 1 . . . . . . . . . . . . . . 1 1 . Robots Melted 3 | . . . . . . . . . . . . . . . . . . . . . . . 1 2 . . Combat Hostiles 3 | . . . . . . . . . . . . . . . . . . . . . . . 1 2 . . Parts Melted 38 | . . . . 2 . . . . 2 5 . . . . . . . . . . . . . 12 16 1 Heat Transferred 18238 | 37 396 100 261 618 . . . 50 222 2479 259 . 827 137 224 137 579 . 2571 . . . 700 1207 6768 666 Parts Sabotaged 2 | . . . . . . . . . . . . . 2 . . . . . . . . . . . . . Parts Stolen . | . . . . . . . . . . . . . . . . . . . . . . . . . . . Parts Stripped . | . . . . . . . . . . . . . . . . . . . . . . . . . . . Power Chain Reactions 13 | . 1 4 3 2 . . . 1 . . . . . . . . . . . . . . . 2 . . Missiles Intercepted . | . . . . . . . . . . . . . . . . . . . . . . . . . . . Alert | -11 -10 -9 -8 -7 -7 -7 -7 -6 -6 -6 -6 -6 -6 -5 -5 -5 -5 -4 -4 -4 -4 -4 -3 -3 -3 -2 ------- Run | Scr Mat Mat Mat Fac Low Low Dat Pro Fac Ext Cet Arc Hub Fac Upp Upp War Pro Fac Upp Upp Zhi Pro Res Tes Res Peak Influence 1670 | 5 119 316 366 188 . . . . 154 310 629 422 1076 557 . . . . 1670 . . . . 555 806 533 Average Influence 311 | 2 42 153 231 80 . . . . 62 106 309 373 694 414 . . . . 771 . . . . 157 418 389 Maximum Alert Level 5 | . . 1 1 . . . . . . 1 2 2 3 2 . . . . 5 . . . . 2 3 2 Low Security (%) 50 | 100 100 80 43 100 . . . . 100 83 16 . 13 . . . . . 4 . . . . 76 13 . Level 1 18 | . . 19 56 . . . . . . 16 67 45 1 37 . . . . 7 . . . . 12 44 25 Level 2 20 | . . . . . . . . . . . 15 54 17 62 . . . . 44 . . . . 11 35 74 Level 3 7 | . . . . . . . . . . . . . 67 . . . . . 24 . . . . . 6 . Level 4 2 | . . . . . . . . . . . . . . . . . . . 12 . . . . . . . Level 5 . | . . . . . . . . . . . . . . . . . . . 5 . . . . . . . High Security . | . . . . . . . . . . . . . . . . . . . . . . . . . . . Max Security . | . . . . . . . . . . . . . . . . . . . . . . . . . . . Squads Dispatched 54 | . 2 2 3 2 . . . . 2 1 . . 5 4 . . . . 12 . . . . 5 15 1 Investigation 10 | . 1 1 . . . . . . 1 . . . 1 2 . . . . 1 . . . . 1 2 . Extermination 12 | . . . . 2 . . . . 1 . . . . 1 . . . . 4 . . . . 1 3 . Reinforcement 22 | . 1 1 3 . . . . . . 1 . . 3 1 . . . . 3 . . . . 3 5 1 Assault 7 | . . . . . . . . . . . . . 1 . . . . . 4 . . . . . 2 . Garrison 3 | . . . . . . . . . . . . . . . . . . . . . . . . . 3 . Intercept . | . . . . . . . . . . . . . . . . . . . . . . . . . . . Construction Impeded 7 | . . . 2 . . . . . . . . . . . . . . . 2 . . . . 1 2 . Haulers Reinforced 3 | . . . . . . . . . . . . . 1 . . . . . 1 . . . . . . 1 Stealth | -11 -10 -9 -8 -7 -7 -7 -7 -6 -6 -6 -6 -6 -6 -5 -5 -5 -5 -4 -4 -4 -4 -4 -3 -3 -3 -2 --------- Run | Scr Mat Mat Mat Fac Low Low Dat Pro Fac Ext Cet Arc Hub Fac Upp Upp War Pro Fac Upp Upp Zhi Pro Res Tes Res Distress Signals 24 | . . 2 3 . . . . . . 3 1 . 1 . . . . . 3 . . . . 2 4 5 Communications Jammed . | . . . . . . . . . . . . . . . . . . . . . . . . . . . Distress Signals . | . . . . . . . . . . . . . . . . . . . . . . . . . . . Times Spotted 437 | . 12 16 29 8 3 8 . 11 6 41 14 2 13 9 4 9 33 11 66 4 7 . 6 40 55 30 Peak Tracking Total 13 | . 4 4 5 2 3 4 . 4 3 8 5 1 6 5 4 5 13 4 8 1 3 . 5 7 8 11 Tactical Retreats 18 | . . . 1 . . . . 1 . 4 . . . 1 . 1 1 . 2 . 2 . . 2 1 2 Traps | -11 -10 -9 -8 -7 -7 -7 -7 -6 -6 -6 -6 -6 -6 -5 -5 -5 -5 -4 -4 -4 -4 -4 -3 -3 -3 -2 ------- Run | Scr Mat Mat Mat Fac Low Low Dat Pro Fac Ext Cet Arc Hub Fac Upp Upp War Pro Fac Upp Upp Zhi Pro Res Tes Res Traps Triggered 9 | . 1 . . 1 . . . . 2 . . . . 1 . . . . 1 . . . . 1 2 . Indirectly . | . . . . . . . . . . . . . . . . . . . . . . . . . . . Trap Hack Attempts . | . . . . . . . . . . . . . . . . . . . . . . . . . . . Triggered . | . . . . . . . . . . . . . . . . . . . . . . . . . . . Disarmed . | . . . . . . . . . . . . . . . . . . . . . . . . . . . Reprogrammed . | . . . . . . . . . . . . . . . . . . . . . . . . . . . Reused . | . . . . . . . . . . . . . . . . . . . . . . . . . . . Traps Extracted . | . . . . . . . . . . . . . . . . . . . . . . . . . . . Installed . | . . . . . . . . . . . . . . . . . . . . . . . . . . . Triggered 7 | . . . . . . 2 . . . . . . . . . 1 4 . . . . . . . . . Machines | -11 -10 -9 -8 -7 -7 -7 -7 -6 -6 -6 -6 -6 -6 -5 -5 -5 -5 -4 -4 -4 -4 -4 -3 -3 -3 -2 ---------- Run | Scr Mat Mat Mat Fac Low Low Dat Pro Fac Ext Cet Arc Hub Fac Upp Upp War Pro Fac Upp Upp Zhi Pro Res Tes Res Machines Disabled 37 | . . 3 2 . . . . . . . 2 . 1 . . . 1 . 17 1 . . . . 10 . Max in Single Turn 9 | . . 2 1 . . . . . . . 1 . . . . . 1 . 9 1 . . . . 2 . Garrison Access 2 | . . . . 1 . . . . . . . . 1 . . . . . . . . . . . . . Machines Sabotaged . | . . . . . . . . . . . . . . . . . . . . . . . . . . . Garrisons Compromised . | . . . . . . . . . . . . . . . . . . . . . . . . . . . Overloaded Fab Kills . | . . . . . . . . . . . . . . . . . . . . . . . . . . . Fab Network Shutdowns 1 | . . . . . . . . . . . . . . . . . . . 1 . . . . . . . Hacking | -11 -10 -9 -8 -7 -7 -7 -7 -6 -6 -6 -6 -6 -6 -5 -5 -5 -5 -4 -4 -4 -4 -4 -3 -3 -3 -2 --------- Run | Scr Mat Mat Mat Fac Low Low Dat Pro Fac Ext Cet Arc Hub Fac Upp Upp War Pro Fac Upp Upp Zhi Pro Res Tes Res Machines Accessed 65 | . 1 3 1 4 . 2 3 1 5 12 1 . 7 1 3 2 . . 5 2 . 4 1 2 5 . Terminals 43 | . 1 3 1 2 . . . 1 4 12 1 . 7 . 1 . . . 3 . . . 1 2 4 . Fabricators 2 | . . . . . . . . . 1 . . . . . . . . . 1 . . . . . . . Repair Stations 3 | . . . . 1 . . . . . . . . . . . . . . 1 . . . . . 1 . Recycling Units . | . . . . . . . . . . . . . . . . . . . . . . . . . . . Scanalyzers 1 | . . . . . . . . . . . . . . 1 . . . . . . . . . . . . Garrison Access 1 | . . . . 1 . . . . . . . . . . . . . . . . . . . . . . Total Hacks 222 | . 3 12 3 11 . 2 21 6 15 37 3 . 19 6 11 5 . . 14 7 . 17 2 3 25 . Successful 143 | . 1 5 1 8 . 2 21 3 8 22 . . 11 3 9 5 . . 6 7 . 17 1 . 13 . Failed 79 | . 2 7 2 3 . . . 3 7 15 3 . 8 3 2 . . . 8 . . . 1 3 12 . Catastrophic 17 | . . 1 . 2 . . . . 1 6 1 . . . 1 . . . 2 . . . 1 1 1 . Database Lockouts . | . . . . . . . . . . . . . . . . . . . . . . . . . . . Manual 103 | . 3 11 . 8 . . . 6 9 26 1 . 10 . 2 . 1 . 9 . . . 2 3 12 . Terminals 135 | . 3 12 3 8 . . . 6 13 37 3 . 19 . 2 . . . 9 . . . 2 3 15 . Fabricators 5 | . . . . . . . . . 2 . . . . . . . . . 3 . . . . . . . Repair Stations 14 | . . . . 2 . . . . . . . . . . . . . . 2 . . . . . 10 . Recycling Units . | . . . . . . . . . . . . . . . . . . . . . . . . . . . Scanalyzers 6 | . . . . . . . . . . . . . . 6 . . . . . . . . . . . . Garrison Access 1 | . . . . 1 . . . . . . . . . . . . . . . . . . . . . . Terminal Hacks 111 | . 1 3 1 4 . 2 21 3 5 15 . . 7 . 9 5 . . 2 7 . 17 1 . 8 . Record 29 | . . . . . . . 6 . . . . . . . 8 4 . . . 6 . 5 . . . . Part Schematic 15 | . . . . . . . 8 . . 3 . . . . . . . . . . . 4 . . . . Robot Schematic 4 | . . . . . . . 4 . . . . . . . . . . . . . . . . . . . Robot Analysis 17 | . . 2 . 1 . . . 3 . 6 . . . . . . . . . . . 4 1 . . . Prototype ID Bank 13 | . . . 1 . . . 3 . 1 2 . . 2 . . . . . . . . 4 . . . . Open Door 6 | . . . . . . 2 . . . . . . . . 1 1 . . . 1 . . . . 1 . Branch Access Points 3 | . . . . 1 . . . . 1 . . . . . . . . . 1 . . . . . . . Terminal Index 6 | . 1 . . 1 . . . . 1 . . . 1 . . . . . 1 . . . . . 1 . Alert Level 2 | . . . . . . . . . . 1 . . 1 . . . . . . . . . . . . . Unreport Threat 10 | . . . . 1 . . . . 2 1 . . 2 . . . . . . . . . . . 4 . Locate Traps 3 | . . 1 . . . . . . . 2 . . . . . . . . . . . . . . . . Recall Investigation 2 | . . . . . . . . . . . . . 1 . . . . . . . . . . . 1 . Zone Layout 1 | . . . . . . . . . . . . . . . . . . . . . . . . . 1 . Fabricator Hacks 2 | . . . . . . . . . . . . . . . . . . . 2 . . . . . . . Load Schematic 1 | . . . . . . . . . . . . . . . . . . . 1 . . . . . . . Build 1 | . . . . . . . . . . . . . . . . . . . 1 . . . . . . . Repair Station Hacks 8 | . . . . 2 . . . . . . . . . . . . . . 2 . . . . . 4 . Scan Component 5 | . . . . 1 . . . . . . . . . . . . . . 1 . . . . . 3 . Repair 3 | . . . . 1 . . . . . . . . . . . . . . 1 . . . . . 1 . Recycling Unit Hacks . | . . . . . . . . . . . . . . . . . . . . . . . . . . . Scanalyzer 3 | . . . . . . . . . . . . . . 3 . . . . . . . . . . . . Insert Component 2 | . . . . . . . . . . . . . . 2 . . . . . . . . . . . . Analyze 1 | . . . . . . . . . . . . . . 1 . . . . . . . . . . . . Garrison Access Hacks 1 | . . . . 1 . . . . . . . . . . . . . . . . . . . . . . Seal Access 1 | . . . . 1 . . . . . . . . . . . . . . . . . . . . . . Unauthorized Hacks 18 | . . 2 . 1 . . . . 3 7 . . 4 . . . . . . . . . . . 1 . Terminals 18 | . . 2 . 1 . . . . 3 7 . . 4 . . . . . . . . . . . 1 . Assimilate 1 | . . . . . . . . . 1 . . . . . . . . . . . . . . . . . Botnet 17 | . . 2 . 1 . . . . 2 7 . . 4 . . . . . . . . . . . 1 . Fabricators . | . . . . . . . . . . . . . . . . . . . . . . . . . . . Repair Stations . | . . . . . . . . . . . . . . . . . . . . . . . . . . . Recycling Units . | . . . . . . . . . . . . . . . . . . . . . . . . . . . Scanalyzers . | . . . . . . . . . . . . . . . . . . . . . . . . . . . Garrison Access . | . . . . . . . . . . . . . . . . . . . . . . . . . . . Data Cores Recovered 2 | . . . . . . . . . . 2 . . . . . . . . . . . . . . . . Used 1 | . . . . . . . . . . 1 . . . . . . . . . . . . . . . . Hacking Detections 45 | . 1 3 1 2 . . . 1 5 11 1 . 7 1 1 . . . 3 . . . 1 2 5 . Full Trace Events 6 | . . 1 . . . . . . 1 . . . 1 1 . . . . 1 . . . . . 1 . Feedback Events . | . . . . . . . . . . . . . . . . . . . . . . . . . . . Feedback Blocked . | . . . . . . . . . . . . . . . . . . . . . . . . . . . Robot Schematics Acquired 4 | . . . . . . . 4 . . . . . . . . . . . . . . . . . . . Robots Built . | . . . . . . . . . . . . . . . . . . . . . . . . . . . Matter . | . . . . . . . . . . . . . . . . . . . . . . . . . . . Time . | . . . . . . . . . . . . . . . . . . . . . . . . . . . Total Robot Build Rating . | . . . . . . . . . . . . . . . . . . . . . . . . . . . Part Schematics Acquired 16 | . . . . . . . 8 . . 3 . . . 1 . . . . . . . 4 . . . . Parts Built 1 | . . . . . . . . . . . . . . . . . . . 1 . . . . . . . Matter 384 | . . . . . . . . . . . . . . . . . . . 384 . . . . . . . Time 204 | . . . . . . . . . . . . . . . . . . . 204 . . . . . . . Total Part Build Rating 8 | . . . . . . . . . . . . . . . . . . . 8 . . . . . . . Parts Repaired 3 | . . . . 1 . . . . . . . . . . . . . . 1 . . . . . 1 . Time 136 | . . . . 32 . . . . . . . . . . . . . . 50 . . . . . 54 . Parts Recycled . | . . . . . . . . . . . . . . . . . . . . . . . . . . . Recycled Matter . | . . . . . . . . . . . . . . . . . . . . . . . . . . . Retrieved Matter . | . . . . . . . . . . . . . . . . . . . . . . . . . . . Retrieved Components . | . . . . . . . . . . . . . . . . . . . . . . . . . . . Parts Scanalyzed 1 | . . . . . . . . . . . . . . 1 . . . . . . . . . . . . Part Schematics Acquired 1 | . . . . . . . . . . . . . . 1 . . . . . . . . . . . . Parts Damaged . | . . . . . . . . . . . . . . . . . . . . . . . . . . . Bothacking | -11 -10 -9 -8 -7 -7 -7 -7 -6 -6 -6 -6 -6 -6 -5 -5 -5 -5 -4 -4 -4 -4 -4 -3 -3 -3 -2 ------------ Run | Scr Mat Mat Mat Fac Low Low Dat Pro Fac Ext Cet Arc Hub Fac Upp Upp War Pro Fac Upp Upp Zhi Pro Res Tes Res Used RIF Installer . | . . . . . . . . . . . . . . . . . . . . . . . . . . . Robots Hacked . | . . . . . . . . . . . . . . . . . . . . . . . . . . . Non-combat . | . . . . . . . . . . . . . . . . . . . . . . . . . . . Combat . | . . . . . . . . . . . . . . . . . . . . . . . . . . . Robot Hacks Applied . | . . . . . . . . . . . . . . . . . . . . . . . . . . . Relay Couplers Released 1 | . . . . . . . . . . . . . 1 . . . . . . . . . . . . . Machine Destruction 1 | . . . . . . . . . . . . . 1 . . . . . . . . . . . . . Robots Rewired 18 | . . . . . . . . . . 15 . . . . . . 3 . . . . . . . . . Allies Hacked 1 | . . . . . . . . . . 1 . . . . . . . . . . . . . . . . Hacks Repelled . | . . . . . . . . . . . . . . . . . . . . . . . . . . . Allies | -11 -10 -9 -8 -7 -7 -7 -7 -6 -6 -6 -6 -6 -6 -5 -5 -5 -5 -4 -4 -4 -4 -4 -3 -3 -3 -2 -------- Run | Scr Mat Mat Mat Fac Low Low Dat Pro Fac Ext Cet Arc Hub Fac Upp Upp War Pro Fac Upp Upp Zhi Pro Res Tes Res Total Allies 34 | . . . . . . . . 1 1 21 5 . . . . . 3 . . 3 . . . . . . Largest Group 12 | . . . . . . . . 1 1 12 6 6 4 4 3 3 3 1 . 3 . . . . . . Highest-Rated Group 626 | . . . . . . . . 94 10 363 626 626 376 376 282 282 282 41 . 87 . . . . . . Highest-Rated Ally 156 | . . . . . . . . 94 10 156 156 156 94 94 94 94 94 41 . 29 . . . . . . Total Orders 2 | . . . . . . . . . . 1 . . . . . . . . . . . . 1 . . . GOTO 1 | . . . . . . . . . . 1 . . . . . . . . . . . . . . . . EXPLORE 1 | . . . . . . . . . . . . . . . . . . . . . . . 1 . . . Ally Attacks 466 | . . . . . . . . 12 . 218 44 41 59 26 15 25 14 5 . 7 . . . . . . Total Damage 13187 | . . . . . . . . 423 . 4151 1586 1556 2186 972 494 824 787 121 . 87 . . . . . . Kills 92 | . . . . . . . . 4 . 25 10 4 17 9 3 10 7 3 . . . . . . . . Allies Corrupted 3 | . . . . . . . . . . . . . . . . . 3 . . . . . . . . . Allies Melted 2 | . . . . . . . . . . 1 . . . . . . . . . . . . . . . 1 Intel | -11 -10 -9 -8 -7 -7 -7 -7 -6 -6 -6 -6 -6 -6 -5 -5 -5 -5 -4 -4 -4 -4 -4 -3 -3 -3 -2 ------- Run | Scr Mat Mat Mat Fac Low Low Dat Pro Fac Ext Cet Arc Hub Fac Upp Upp War Pro Fac Upp Upp Zhi Pro Res Tes Res Robot Analysis Total 17 | . . 2 . 1 . . . 3 . 6 . . . . . . . . . . . 4 1 . . . Derelict Logs Recovered 10 | . . . . . 1 2 . 1 . . . . . . 2 1 . 1 . 1 1 . . . . . Drone Launches 3 | . . . . . . . . . . . . . . . . . . . . . 3 . . . . . Drone Recoveries . | . . . . . . . . . . . . . . . . . . . . . . . . . . . Exploration | -11 -10 -9 -8 -7 -7 -7 -7 -6 -6 -6 -6 -6 -6 -5 -5 -5 -5 -4 -4 -4 -4 -4 -3 -3 -3 -2 ------------- Run | Scr Mat Mat Mat Fac Low Low Dat Pro Fac Ext Cet Arc Hub Fac Upp Upp War Pro Fac Upp Upp Zhi Pro Res Tes Res Turns Passed 19518 | 112 774 444 684 1250 344 391 136 576 868 1646 379 114 431 562 607 771 712 729 2001 1715 637 272 675 816 1293 579 Spaces Moved 8937 | 61 391 199 244 667 205 234 83 302 490 722 120 49 213 288 330 418 376 292 799 669 343 162 303 334 438 205 Core 18 | 18 . . . . . . . . . . . . . . . . . . . . . . . . . . Treads 8919 | 43 391 199 244 667 205 234 83 302 490 722 120 49 213 288 330 418 376 292 799 669 343 162 303 334 438 205 Legs . | . . . . . . . . . . . . . . . . . . . . . . . . . . . Wheels . | . . . . . . . . . . . . . . . . . . . . . . . . . . . Hover . | . . . . . . . . . . . . . . . . . . . . . . . . . . . Flight . | . . . . . . . . . . . . . . . . . . . . . . . . . . . Fastest Speed 50 | 50 160 180 180 160 162 162 162 162 162 160 160 160 160 160 180 180 160 166 160 160 160 160 160 160 160 160 Average Speed 165 | 154 170 180 180 160 162 162 162 162 162 161 160 160 163 179 180 180 163 166 163 160 160 160 160 160 163 163 Slowest Speed 200 | 200 180 180 180 180 162 162 162 162 180 180 160 160 180 180 180 180 180 166 186 160 160 160 160 180 180 195 Overloaded Moves . | . . . . . . . . . . . . . . . . . . . . . . . . . . . Propulsion Burnouts . | . . . . . . . . . . . . . . . . . . . . . . . . . . . Robots Hopped . | . . . . . . . . . . . . . . . . . . . . . . . . . . . Cave-ins Triggered 1 | . . . . . . . . . . . . . . . . . . . 1 . . . . . . . Teleports 1 | . . . . . . . . . . . . . . . . . . . . . . . . . 1 . Exploration Rate (%) 45 | 4 46 24 28 21 53 47 69 53 18 85 59 66 33 8 59 68 66 57 25 73 52 61 74 15 44 10 Regions Visited 26 Branch Regions 17 Pre-discovered Areas 7 | . . . . . . . 1 . . . . . . . 1 . . . . 2 . 3 . . . . Known Exits Taken 9 | . . . . 1 . 1 . 1 1 . . . . . 1 . . 1 1 . . . 1 1 . . Unknown Exits Taken 17 | 1 1 1 1 . 1 . 1 . . 1 1 1 1 1 . 1 1 . . 1 1 1 . . 1 . Scrap Searched 24 | . . . . . 1 3 . 4 . . . . . . 3 3 . 2 . 3 3 . 2 . . . Spaces Dug 117 | . . . 4 . . 10 . . 6 . . . . 1 . . . 8 63 . . . 15 4 6 . Terrain Destroyed 592 | . 5 23 25 10 16 25 . 21 15 . . . . 3 1 3 15 26 212 12 . . 26 45 106 3 Melee . | . . . . . . . . . . . . . . . . . . . . . . . . . . . Projectile 92 | . . . . . . . . . 6 . . . . 3 1 3 1 8 47 . . . . 7 13 3 AOE 500 | . 5 23 25 10 16 25 . 21 9 . . . . . . . 14 18 165 12 . . 26 38 93 . Actions | -11 -10 -9 -8 -7 -7 -7 -7 -6 -6 -6 -6 -6 -6 -5 -5 -5 -5 -4 -4 -4 -4 -4 -3 -3 -3 -2 --------- Run | Scr Mat Mat Mat Fac Low Low Dat Pro Fac Ext Cet Arc Hub Fac Upp Upp War Pro Fac Upp Upp Zhi Pro Res Tes Res Total 12546 | 72 455 243 391 808 212 240 84 355 551 1108 281 84 271 327 339 431 455 510 1241 1304 406 175 463 478 889 373 Wait 2019 | . . 3 11 24 . . . 7 2 128 114 31 26 12 1 11 23 191 257 606 38 . 136 16 292 90 Move 8910 | 60 390 198 243 666 204 233 82 301 489 721 119 48 212 287 329 417 375 291 797 668 342 161 302 333 437 205 Hop . | . . . . . . . . . . . . . . . . . . . . . . . . . . . Pick Up 171 | 4 18 6 20 22 . . . 5 11 8 4 2 3 5 3 . 5 . 13 4 1 3 . 8 19 7 Fast Attach 82 | 6 2 . 9 3 . . . . 4 2 3 . 5 6 . . 4 . 6 3 . 4 1 12 6 6 Attach 65 | . 5 3 6 5 . . . 5 2 . 4 . . 1 . . 1 . 8 3 . 1 1 5 10 5 Detach 3 | . 1 . . . . . . . . . 1 . . . . . . . . 1 . . . . . . Swap 238 | . 2 5 18 27 6 4 2 11 11 26 8 2 5 2 . . 8 12 19 6 7 1 6 19 22 9 Drop 239 | . 8 5 26 31 . . . 8 14 25 11 1 6 10 3 . 12 . 17 5 4 5 2 14 22 10 Fire 625 | 2 23 21 54 24 2 3 . 18 12 56 17 . 13 4 3 3 11 16 119 8 13 . 15 68 79 41 Melee . | . . . . . . . . . . . . . . . . . . . . . . . . . . . Ram . | . . . . . . . . . . . . . . . . . . . . . . . . . . . Kick . | . . . . . . . . . . . . . . . . . . . . . . . . . . . Crush 38 | . 6 2 4 6 . . . . 6 4 . . 1 . . . . . 4 . . . . 3 2 . Escape Stasis 1 | . . . . . . . . . . . . . . . . . . . 1 . . . . . . . Rewire 154 | . . . . . . . . . . 138 . . . . . . 16 . . . . . . . . . Trap . | . . . . . . . . . . . . . . . . . . . . . . . . . . . Miscellaneous 1 | . . . . . . . . . . . . . . . . . . . . . 1 . . . . . Route ------- -11/Scrapyard -10/Materials (discovered 2 exits: *Mat x2) -9/Materials -8/Materials -7/Factory (discovered 3 exits: *Fac / *Low x2) -7/Lower Caves -7/Lower Caves -7/Data Miner -6/Proximity Caves -6/Factory (discovered 5 exits: *Fac / Low x2 / *Ext x2) -6/Extension (discovered 2 exits: *Fac / *Cet) -6/Cetus -6/Archives -6/Hub_04(d) -5/Factory (discovered 3 exits: *Fac x2 / *Upp) -5/Upper Caves -5/Upper Caves -5/Warlord -4/Proximity Caves -4/Factory (discovered 4 exits: *Res x2 / *Upp x2) -4/Upper Caves -4/Upper Caves -4/Zhirov -3/Proximity Caves -3/Research (discovered 2 exits: Arm / *Tes) -3/Testing -2/Research History --------- Turn | Location | Event 30 | -11/Scrapyard | Discovered new exit (range 15) 113 | -11/Scrapyard | Entered Materials 307 | -10/Materials | Discovered new exit (range 8) 314 | -10/Materials | Build established: Mutant 400 | -10/Materials | Discovered new exit (range 16) 887 | -10/Materials | Entered another Materials area 887 | -9/Materials | Evolved 2 slots: Utility x2 1268 | -9/Materials | Discovered new exit (range 10) 1331 | -9/Materials | Entered another Materials area 1331 | -8/Materials | Evolved 2 slots: Power x1, Utility x1 1998 | -8/Materials | Discovered new exit (range 9) 2015 | -8/Materials | Entered Factory 2015 | -7/Factory | Evolved 2 slots: Propulsion x2 2353 | -7/Factory | Discovered new exit (range 15) 2405 | -7/Factory | Identified exit to Factory 2422 | -7/Factory | Found Prototype Launcher 2422 | -7/Factory | Identified Rocket Array 2464 | -7/Factory | Build established: Hauler-Mutant 2652 | -7/Factory | Repaired Hrd. Light Armor Plating 2943 | -7/Factory | Identified exit to Lower Caves 3265 | -7/Factory | Entered Lower Caves 3266 | -7/Lower Caves | Encountered a Warlord checkpoint 3323 | -7/Lower Caves | Learned Factory emergency access door positions 3498 | -7/Lower Caves | Spotted B-75 Beast 3587 | -7/Lower Caves | Discovered new exit (range 13) 3609 | -7/Lower Caves | Entered another Lower Caves area 3765 | -7/Lower Caves | Learned Factory emergency access door positions 3906 | -7/Lower Caves | Identified exit to Data Miner 4000 | -7/Lower Caves | Entered Data Miner 4002 | -7/Data Miner | Discovered new exit (range 6) 4033 | -7/Data Miner | Met Data Miner 4062 | -7/Data Miner | Learned location of Section 7 (-2) 4062 | -7/Data Miner | Acquired the access code to Warlord's prototype stash 4093 | -7/Data Miner | Received God Mode back door access code from Data Miner 4136 | -7/Data Miner | Entered Proximity Caves 4297 | -6/Proximity Caves | Learned Factory stockpile data 4479 | -6/Proximity Caves | Escorted by Enhanced Grunt 4549 | -6/Proximity Caves | Spotted B-75 Beast 4592 | -6/Proximity Caves | Destroyed B-75 Beast 4653 | -6/Proximity Caves | Discovered exit to Factory (range 11) 4712 | -6/Proximity Caves | Entered Factory 4712 | -6/Factory | Evolved 2 slots: Utility x2 5423 | -6/Factory | Identified exit to Lower Caves 5423 | -6/Factory | Identified exit to Extension 5566 | -6/Factory | Discovered new exit (range 10) 5580 | -6/Factory | Entered Extension 5580 | -6/Extension | Accompanied by 1 ally 5874 | -6/Extension | Rescued a captive Derelict 5875 | -6/Extension | Rescued a captive Derelict 6007 | -6/Extension | Rescued a captive Derelict 6127 | -6/Extension | Build established: Commander-Mutant 6491 | -6/Extension | Spotted B-75 Beast 6507 | -6/Extension | Allies destroyed B-75 Beast 6519 | -6/Extension | Spotted B-75 Beast 6527 | -6/Extension | Allies destroyed B-75 Beast 6555 | -6/Extension | Disrupted transfer network 6670 | -6/Extension | Build established: Scavenger-Mutant 6861 | -6/Extension | Rescued a captive Derelict 6863 | -6/Extension | Rescued a captive Derelict 7051 | -6/Extension | Rescued A7 7137 | -6/Extension | Discovered new exit (range 10) 7139 | -6/Extension | Discovered new exit (range 6) 7226 | -6/Extension | Entered Cetus 7226 | -6/Cetus | Accompanied by 4 allies 7231 | -6/Cetus | Acquired a Cetus Manufacturing Module code from A7 7251 | -6/Cetus | Spotted Cetus Guard 7251 | -6/Cetus | Spotted Cetus Guard 7258 | -6/Cetus | Destroyed Cetus Guard 7258 | -6/Cetus | Spotted Cetus Guard 7260 | -6/Cetus | Spotted Cetus Guard 7265 | -6/Cetus | Destroyed Cetus Guard 7271 | -6/Cetus | Allies destroyed Cetus Guard 7278 | -6/Cetus | Allies destroyed Cetus Guard 7408 | -6/Cetus | Escorted A7 to Cetus Mainframe 7421 | -6/Cetus | Started Cetus Manufacturing Module 7446 | -6/Cetus | Manufactured an Enhanced Grunt 7471 | -6/Cetus | Manufactured an Enhanced Grunt 7496 | -6/Cetus | Manufactured an Enhanced Grunt 7521 | -6/Cetus | Manufactured an Enhanced Grunt 7546 | -6/Cetus | Manufactured an Enhanced Grunt 7571 | -6/Cetus | Discovered new exit (range 15) 7605 | -6/Cetus | Entered Archives 7605 | -6/Archives | Accompanied by 6 allies 7610 | -6/Archives | Received a hacking code to weaken MAIN.C 7674 | -6/Archives | Found Prototype Device 7675 | -6/Archives | Identified Exp. Thermal Shield 7689 | -6/Archives | Discovered new exit (range 16) 7719 | -6/Archives | Entered Hub_04(d) 7719 | -6/Hub_04(d) | Accompanied by 4 allies 8131 | -6/Hub_04(d) | Discovered new exit (range 7) 8150 | -6/Hub_04(d) | Entered Factory 8150 | -5/Factory | Accompanied by 4 allies 8150 | -5/Factory | Evolved 2 slots: Utility x2 8241 | -5/Factory | Discovered new exit (range 15) 8286 | -5/Factory | Identified exit to Factory 8436 | -5/Factory | Incoming investigation squad redirected 8614 | -5/Factory | Incoming investigation squad redirected 8641 | -5/Factory | Discovered new exit (range 7) 8683 | -5/Factory | Discovered exit to Factory (range 10) 8712 | -5/Factory | Entered Upper Caves 8712 | -5/Upper Caves | Accompanied by 3 allies 8714 | -5/Upper Caves | Attracted the attention of an 0b10 checkpoint 8953 | -5/Upper Caves | Learned Factory trap positions 9019 | -5/Upper Caves | Identified exit to Upper Caves 9129 | -5/Upper Caves | Learned Factory trap positions 9129 | -5/Upper Caves | Learned Research stockpile data 9129 | -5/Upper Caves | Learned Extension stockpile data 9129 | -5/Upper Caves | Learned Research garrison access intel 9129 | -5/Upper Caves | Learned Armory garrison access intel 9294 | -5/Upper Caves | Encountered a Warlord checkpoint 9319 | -5/Upper Caves | Entered another Upper Caves area 9319 | -5/Upper Caves | Accompanied by 3 allies 9409 | -5/Upper Caves | Attracted the attention of an 0b10 checkpoint 9427 | -5/Upper Caves | Learned location of 1 exit from Factory 9480 | -5/Upper Caves | Encountered a Warlord checkpoint 10003 | -5/Upper Caves | Discovered new exit (range 15) 10039 | -5/Upper Caves | Learned Factory emergency access door positions 10090 | -5/Upper Caves | Entered Warlord 10090 | -5/Warlord | Accompanied by 3 allies 10126 | -5/Warlord | System corruption reached 10% 10150 | -5/Warlord | System corruption cleaned by Quarantine Array 10434 | -5/Warlord | Met Warlord 10448 | -5/Warlord | Opened Warlord's prototype stash 10454 | -5/Warlord | Found Prototype Reactor 10454 | -5/Warlord | Identified Vortex Chain Reactor 10459 | -5/Warlord | Warlord's base attacked by MAIN.C 10461 | -5/Warlord | Found Exp. Targeting Computer 10469 | -5/Warlord | Found Prototype Processor 10469 | -5/Warlord | Identified Spectral Analyzer 10473 | -5/Warlord | Found Prototype Device 10473 | -5/Warlord | Identified Thermal Barrier 10486 | -5/Warlord | Found Prototype Hackware 10651 | -5/Warlord | Spotted B-86 Titan 10680 | -5/Warlord | Warlord forces counterattacked 10687 | -5/Warlord | P-70 Sage assimilated allied QU-BXK(Y) 10745 | -5/Warlord | Discovered new exit (range 15) 10754 | -5/Warlord | Build established: Hauler-Mutant 10760 | -5/Warlord | Spotted Executioner 10802 | -5/Warlord | Entered Proximity Caves 10802 | -4/Proximity Caves | Accompanied by 1 ally 11531 | -4/Proximity Caves | Entered Factory 11531 | -4/Factory | Evolved 2 slots: Utility x2 11532 | -4/Factory | Identified exit to Research 11533 | -4/Factory | Loaded intel: 112 trap records 11627 | -4/Factory | Local fabrication network quarantined 11749 | -4/Factory | Fabricated Centrium Heavy Treads (x1) 11822 | -4/Factory | Discovered exit to Research (range 10) 11918 | -4/Factory | Found Exp. Targeting Computer 12383 | -4/Factory | Repaired Proton Cannon 12781 | -4/Factory | First assault squad dispatched 12846 | -4/Factory | Incoming assault squad redirected 13088 | -4/Factory | Spotted B-86 Titan 13387 | -4/Factory | Identified exit to Upper Caves 13507 | -4/Factory | Crushed by falling debris 13508 | -4/Factory | System corruption reached 10% 13532 | -4/Factory | Entered Upper Caves 13804 | -4/Upper Caves | A Commander dispatched an escort 13806 | -4/Upper Caves | Learned Research emergency access door positions 13806 | -4/Upper Caves | Learned Factory garrison access intel 14522 | -4/Upper Caves | Learned location of Quarantine (-2) 14543 | -4/Upper Caves | Attracted the attention of an 0b10 checkpoint 14701 | -4/Upper Caves | Found Alien Artifact 15231 | -4/Upper Caves | Discovered new exit (range 6) 15247 | -4/Upper Caves | Entered another Upper Caves area 15247 | -4/Upper Caves | Accompanied by 2 allies 15248 | -4/Upper Caves | Commander's escort returned to base 15248 | -4/Upper Caves | Commander's escort returned to base 15427 | -4/Upper Caves | Learned 12 Research zone layouts 15653 | -4/Upper Caves | Attracted the attention of an 0b10 checkpoint 15841 | -4/Upper Caves | Discovered new exit (range 15) 15884 | -4/Upper Caves | Entered Zhirov 15884 | -4/Zhirov | Accompanied by 3 allies 15884 | -4/Zhirov | Discovered new exit (range 3) 15913 | -4/Zhirov | Met Zhirov 15942 | -4/Zhirov | Learned location of Testing (-3) 15942 | -4/Zhirov | Learned location of Command (-1) 15958 | -4/Zhirov | Zhirov requested help retrieving the SGEMP Prototype 15986 | -4/Zhirov | Found Alien Artifact 15986 | -4/Zhirov | Identified Integrated Dissipator 15986 | -4/Zhirov | Installed Integrated Dissipator, increased core heat dissipation (+2%) 16089 | -4/Zhirov | Found Alien Artifact 16156 | -4/Zhirov | Entered Proximity Caves 16156 | -3/Proximity Caves | Accompanied by 3 allies 16457 | -3/Proximity Caves | Received a Behemoth hack from an annoying Tinkerer 16651 | -3/Proximity Caves | Attracted the attention of an 0b10 checkpoint 16819 | -3/Proximity Caves | Discovered exit to Research (range 8) 16831 | -3/Proximity Caves | Entered Research 16831 | -3/Research | Evolved 2 slots: Power x1, Utility x1 16832 | -3/Research | Identified exit to Testing 16832 | -3/Research | Identified exit to Armory 16835 | -3/Research | Loaded intel: 2 garrison access locations 16839 | -3/Research | Found Prototype Device 16839 | -3/Research | Identified Exp. Thermal Shield 17083 | -3/Research | Spotted B-86 Titan 17131 | -3/Research | Destroyed B-86 Titan 17154 | -3/Research | Found Hvy. Reflective Plating 17264 | -3/Research | Incoming investigation squad redirected 17470 | -3/Research | Build established: Scavenger-Mutant 17647 | -3/Research | Entered Testing 17670 | -3/Testing | Identified Ghost Barrier 17920 | -3/Testing | Repaired Centrium Medium Armor Plating 18119 | -3/Testing | Build established: Hacker-Mutant 18303 | -3/Testing | Found Prototype Energy Cannon 18305 | -3/Testing | Identified Imp. Potential Cannon 18397 | -3/Testing | First assault squad dispatched 18460 | -3/Testing | Destroyed 13 combat bots 18533 | -3/Testing | Scanned by Researcher 18549 | -3/Testing | Found Prototype Protection 18549 | -3/Testing | Identified SHELL Armor 18576 | -3/Testing | Garrison activated, responded to threat 18619 | -3/Testing | Destroyed 11 combat bots 18683 | -3/Testing | System corruption reached 10% 18686 | -3/Testing | Identified Transdimensional Reconstructor 18686 | -3/Testing | Warped through subspace 18698 | -3/Testing | Destroyed 7 combat bots 18822 | -3/Testing | Build established: Scavenger-Mutant 18877 | -3/Testing | Discovered new exit (range 9) 18911 | -3/Testing | Found Ghost Barrier 18940 | -3/Testing | Entered Research 18940 | -2/Research | Warlord forces began assault on 0b10 18940 | -2/Research | Evolved 2 slots: Power x1, Utility x1 19050 | -2/Research | Research machine network offline 19060 | -2/Research | Borebot progress halted 19241 | -2/Research | Borebot progress halted 19314 | -2/Research | Build established: Generator-Mutant 19361 | -2/Research | Spotted Striker 19373 | -2/Research | Destroyed Striker 19417 | -2/Research | Destroyed 7 combat bots 19459 | -2/Research | Borebot progress halted 19466 | -2/Research | Borebot progress halted 19478 | -2/Research | Spotted Executioner 19480 | -2/Research | Spotted Executioner 19492 | -2/Research | Destroyed Executioner 19500 | -2/Research | Destroyed Executioner 19512 | -2/Research | Spotted Striker 19519 | -2/Research | Self-destructed Last Messages --------------- 19494_ Slug penetrates Wall. 19494_ Penetrated by Slug. 19497_ Slug penetrates Wall. 19500_ Executioner system terminally corrupted. 19504_ G-73 Enforcer suffers critical hit. 19504_ G-73 Enforcer destroyed. 19510_ Destroyed Hvy. Laser. 19510_ Destroyed Phase Gun. 19510_ G-73 Enforcer destroyed. 19514_ W-44 Eye destroyed. 19515_ C-30 ARC bursts open, deploying its payload. 19515_ H-88 Terminator unfolds itself. 19515_ Penetrated by Slug. 19515_ Critical hit. 19516_ Destroyed Imp. Shock Absorption System. 19516_ Adv. Heat Sink destroyed. 19518_ Overheating: System interference. 19518_ Enh. Nova Cannon temporarily disabled. 19518_ Penetrated by Slug. 19518_ Slug penetrates D-83 Annihilator. Map ----- +----------------------------------------------------+ | ?????????????????????????????????????????????????? | | ?????????????????????????????????????????????????? | | ?????????????????????????????????????????????????? | | ?????????????????????????????????????????????????? | | ?????????????????????????????????????????????????? | | ?????????????????????????????????????????????????? | | ?????????????????????????????????????????????????? | | ?????????????????????????????????????????????????? | | ?????????????????????????????????????????????????? | | ??????????% ??????????????????????????????????? | | ????????? [% ????????????????????????????????? | | ????????? #]%! ???????????????????????????????? | | ????????? =* ???????????????????????????????? | | ????????# ????????????????????????????????? | | ????????# # ???????????????????????????????? | | ???????? ??????????????? ???????????????? | | ????????? ? ?????????????""??? ???????????? | | #????????? ?? ??????????? """ ???????????? | | #?????????# #??? ????????? """ ????????????? | | #?######### #####;+######## ?????????????? | | ### # A ??????????????? | | ! [ # """??????????????? | | [ # """??????????????? | | # == # = """ ""?????????? | | ##+## ###+ [ ????????? | | ! ;; !%* @ ????????? | | ;; ![= * ;;;;;;;;;????????? | | [%= ;; ????????? | | # "" ## """ """ ?????????? | | ## """ "" ?????????? | | ## ??????????? | | ### ##### #d ;####+#####??????????? | | #?#####???# """ """ #; ???????????????????? | | #?????????# """ """ #; ??????????????????? | | #?????????# "" """ #; K ??????????????????? | | #####??????#= #; """ ?????????????????? | | #??????# * #;h """ ?????????????????? | | #??????##############; %"??? ????????????????? | | #????????????????????; h ????????????????????? | | #????????????????????; ????????????????????? | | #????????????????????;##?????????????????????? | | ????????????????????????????????????????????? | | ???????????????????????????????????????????????? | | ???????????????????????????????????????????????? | | ###??????????????????????????????????????????????? | | ?????????????????????????????????????????????????? | | ?????????????????????????????????????????????????? | | ?????????????????????????????????????????????????? | | ?????????????????????????????????????????????????? | | ?????????????????????????????????????????????????? | +----------------------------------------------------+ Best States ------------- Heat Dissipation 119 Energy Generation 79 Energy Capacity 1500 Matter Stores 300 Matter Capacity 300 Sight Range 24 Robot Scan Range 20 Terrain Scan Density 10 Armor Coverage 1800 Resistance: KI 20 Resistance: TH 50 Evasion (%) 40 Targeting Accuracy 24 Target Analysis 8 Core Analysis 8 Recoil Reduction 4 Particle Charging 15 Offensive Hacking 14 Defensive Hacking 20 Item Schematics ----------------- Lgt. Regenerative Plating | -7/Data Miner | Free Combat Drone Bay | -7/Data Miner | Free Exp. Cesium-ion Thruster | -7/Data Miner | Free Exp. Sensor Array | -7/Data Miner | Free Exp. Terrain Scanner | -7/Data Miner | Free Exp. Targeting Computer | -7/Data Miner | Free Tactical Coordination Suite | -7/Data Miner | Free Cloaking Device | -7/Data Miner | Free Adv. Coolant Injector | -6/Extension | Hacked Mic. Fission Core | -6/Extension | Hacked Imp. Target Analyzer | -6/Extension | Hacked Centrium Heavy Treads | -5/Factory | Scanalyzed Assault Drone Bay | -4/Zhirov | Free Exp. Heat Sink | -4/Zhirov | Free Exp. Optical Array | -4/Zhirov | Free Imp. Arc Thrower | -4/Zhirov | Free Robot Schematics ------------------ S-27 Virus | -7/Data Miner | Free G-50 Soldier | -7/Data Miner | Free X-72 Disruptor | -7/Data Miner | Free I-36 Angel | -7/Data Miner | Free Fabricated ------------ Centrium Heavy Treads | x1 | -4/Factory Alien Tech Used ----------------- Integrated Dissipator Transdimensional Reconstructor Achievements -------------- None Challenges ------------ None Game ------ Seed GravitonArmoredExtractor Manual? 0 Play Time 02:00:14 Cumulative 547.6 hours Start 2020.05.23 @ 21:50:31 End 2020.05.30 @ 18:24:07 Sessions 2 Manual Loads 0 Difficulty Rogue Special Mode None Game No. 873 Rogue 873 Adventurer 0 Explorer 0 Win Type - Total 50 Types 32/1/6/8/3/0/0 Lore% 94 Gallery% 94 Achievement% 82 Wizard Run 0 Options --------- ASCII 1 Keyboard 0 Movement Numpad Keybinds 0 Fullscreen 0 Font 14/SmallcapsGlow Map View 76x50 Tactical HUD 1 Map Filters NONE Filters NONE Steam 1 RUN: bd0fd783-ea92-46fc-81aa-eddbd6af09ea